fUST/lending_fUST_20251220
["ID","MTS","AMOUNT","RATE_DAILY","PERIOD"]
[399246955,1766202639540,-188.47367769,0.00013821,2]
[399246957,1766202639549,-358.73820878,0.00013821,2]
[399246959,1766202639559,-584.91599686,0.00013821,2]
[399246961,1766202639568,-500.0,0.00013821,2]
[399246963,1766202639577,-1000.0,0.00013821,2]
[399246965,1766202639586,-1000.0,0.00013821,2]
[399246967,1766202639595,-1000.0,0.00013821,2]
[399246969,1766202639604,-500.0,0.00013821,2]
[399246971,1766202639613,-1000.0,0.00013821,2]
[399246973,1766202639622,-1000.0,0.00013821,2]
[399246975,1766202639631,-1000.0,0.00013821,2]
[399246977,1766202639640,-1000.0,0.00013821,2]
[399246979,1766202639649,-1000.0,0.00013821,2]
[399246981,1766202639658,-1000.0,0.00013821,2]
[399246982,1766202639666,-1000.0,0.00013821,2]
[399246983,1766202639675,-575.5078373,0.00013821,2]
[399246984,1766202639684,-1000.0,0.00013821,2]
[399246985,1766202639693,-176.25528057,0.00013879,2]
[399246986,1766202639701,-500.0,0.00013879,2]
[399246987,1766202639710,-500.0,0.00013879,2]
[399246988,1766202639719,-500.0,0.00013879,2]
[399246989,1766202639728,-500.0,0.00013879,2]
[399246990,1766202639737,-369.35451354,0.00013879,2]
[399246991,1766202639746,-17600.09689876,0.0001388,2]
[399246992,1766202639754,-398.88082857,0.00013881,2]
[399246993,1766202639763,-250.0,0.000139,2]
[399246994,1766202639772,-300.0,0.00013972,2]
[399246995,1766202639781,-300.0,0.00013972,2]
[399246996,1766202639790,-300.0,0.00013972,2]
[399246997,1766202639799,-300.0,0.00013972,2]
[399246998,1766202639807,-300.0,0.00013972,2]
[399246999,1766202639817,-300.0,0.00013972,2]
[399247000,1766202639825,-300.0,0.00013972,2]
[399247001,1766202639834,-300.0,0.00013972,2]
[399247002,1766202639843,-300.0,0.00013972,2]
[399247003,1766202639852,-300.0,0.00013972,2]
[399247004,1766202639861,-300.0,0.00013972,2]
[399247006,1766202639870,-300.0,0.00013972,2]
[399247008,1766202639879,-300.0,0.00013972,2]
[399247010,1766202639889,-300.0,0.00013972,2]
[399247012,1766202639897,-300.0,0.00013972,2]
[399247014,1766202639906,-600.0,0.00013972,2]
[399247016,1766202639916,-854.46602643,0.00014141,7]
[399247018,1766202639926,-393.25,0.00014154,2]
[399247020,1766202639935,-600.0,0.00014221,2]
[399247022,1766202639944,-1000.0,0.00014247,2]
[399247024,1766202639954,-500.66397484,0.00014247,2]
[399247026,1766202639963,-846.60786003,0.00014247,2]
[399247028,1766202639972,-197.3838396,0.00014247,2]
[399247030,1766202639981,-1500.0,0.00014368,2]
[399247032,1766202639990,-1277.0465852,0.00014368,2]
[399247034,1766202639999,-423.03184811,0.00014368,2]
[399247036,1766202640008,-1500.0,0.00014368,2]
[399247038,1766202640017,-1500.0,0.00014368,2]
[399247040,1766202640027,-1500.0,0.00014368,2]
[399247042,1766202640036,-1500.0,0.00014368,2]
[399247044,1766202640046,-1500.0,0.00014368,2]
[399247046,1766202640054,-1500.0,0.00014368,2]
[399247048,1766202640065,-500.92186374,0.00014368,2]
[399247050,1766202640075,-499.5342913,0.00014368,2]
[399247052,1766202640084,-511.49254728,0.00014368,2]
[399247055,1766202640094,-5538.762159,0.0001437,2]
[399247057,1766202640103,-426.04817004,0.00014385,2]
[399247059,1766202640112,-420.0,0.00014442,2]
[399247061,1766202640122,-1680.0,0.00014489,2]
[399247063,1766202640132,-1235.8648875,0.0001455,2]
[399247065,1766202640141,-643.38615901,0.00014564,2]
[399247075,1766202640222,-1128.30690579,0.00014618,2]
[399247077,1766202640231,-900.0,0.00014768,2]
[399247079,1766202640240,-1006.42949967,0.00014795,2]
[399247081,1766202640254,-164.36750185,0.00014916,2]
[399247083,1766202640263,-2000.0,0.00014916,2]
[399247085,1766202640273,-2000.0,0.00014916,2]
[399247087,1766202640283,-675.16805127,0.00014916,2]
[399247089,1766202640292,-1274.62483761,0.00014916,2]
[399247091,1766202640302,-2000.0,0.00014916,2]
[399247093,1766202640311,-2000.0,0.00014916,2]
[399247095,1766202640320,-525.28802386,0.00015263,7]
[399247097,1766202640330,-286.09780709,0.00015273,2]
[399247099,1766202640339,-206.48166356,0.000153,2]
[399247101,1766202640349,-152.15453697,0.000153,2]
[399247103,1766202640358,-322.8917376,0.000153,2]
[399247105,1766202640367,-1200.0,0.00015316,2]
[399247107,1766202640376,-720.0,0.00015369,2]
[399247109,1766202640385,-2500.0,0.00015464,2]
[399247111,1766202640395,-2090.01244182,0.00015464,2]
[399247113,1766202640404,-2500.0,0.00015464,2]
[399247115,1766202640413,-2500.0,0.00015464,2]
[399247117,1766202640422,-181.47101028,0.00015525,2]
[399247119,1766202640432,-587.0,0.00015836,2]
[399247121,1766202640441,-1500.0,0.00015864,2]
[399247123,1766202640450,-2351.0,0.00015938,2]
[399247125,1766202640459,-250.0,0.00016,2]
[399247127,1766202640468,-3000.0,0.00016012,2]
[399247129,1766202640477,-3000.0,0.00016012,2]
[399247131,1766202640486,-3000.0,0.00016012,2]
[399247133,1766202640495,-181.65248129,0.00016287,2]
[399247135,1766202640504,-3140.88609445,0.00016312,2]
[399247137,1766202640513,-567.0,0.00016326,2]
[399247139,1766202640522,-160.01332946,0.00016401,2]
[399247141,1766202640531,-1800.0,0.00016412,2]
[399247143,1766202640540,-151.0,0.00016438,2]
[399247145,1766202640549,-155.495225,0.00016438,2]
[399247147,1766202640559,-182.31,0.0001644,2]
[399247149,1766202640567,-182.31,0.0001655,2]
[399247151,1766202640577,-3500.0,0.0001656,2]
[399247153,1766202640586,-3500.0,0.0001656,2]
[399247155,1766202640596,-3500.0,0.0001656,2]
[399247157,1766202640605,-160.0,0.00016613,2]
[399247159,1766202640614,-168.0,0.00016715,2]
[399247161,1766202640623,-864.0,0.00016906,2]
[399247163,1766202640633,-2100.0,0.0001696,2]
[399247165,1766202640643,-2578.61319143,0.00017108,2]
[399247168,1766202640652,-3795.55373181,0.00017108,2]
[399247170,1766202640662,-592.42666138,0.00017108,2]
[399247172,1766202640672,-160.0,0.00017139,3]
[399247173,1766202640681,-2163.281,0.00017146,2]
[399247175,1766202640690,-1370.981,0.00017146,2]
[399247177,1766202640699,-634.656,0.00017146,2]
[399247179,1766202640708,-556.409,0.00017146,2]
[399247182,1766202640718,-415.0,0.00017146,2]
[399247183,1766202640727,-260.0,0.0001716,2]
[399247185,1766202640736,-152.15453697,0.00017235,6]
[399247187,1766202640745,-484.3376064,0.00017237,6]
[399247189,1766202640754,-329.73984546,0.00017273,2]
[399247191,1766202640763,-823.0,0.00017363,2]
[399247193,1766202640772,-168.0,0.00017413,2]
[399247195,1766202640781,-160.0,0.00017451,4]
[399247197,1766202640791,-950.91049859,0.00017508,2]
[399247200,1766202640801,-3292.0,0.00017531,2]
[399247202,1766202640810,-360.0,0.00017708,2]
[399247203,1766202640819,-168.0,0.00017731,2]
[399247206,1766202640829,-160.0,0.00017763,5]
[399247207,1766202640838,-250.0,0.00018,2]
[399247210,1766202640848,-2160.90144271,0.00018,5]
[399247211,1766202640857,-168.0,0.00018002,2]
[399247213,1766202640866,-160.0,0.00018076,6]
[399247215,1766202640875,-484.3376064,0.00018206,8]
[399247217,1766202640885,-460.0,0.00018256,2]
[399247219,1766202640894,-160.0,0.00018388,7]
[399247221,1766202640903,-3140.88609444,0.00018442,2]
[399247224,1766202640912,-1000.0,0.00018596,2]
[399247225,1766202640922,-160.0,0.000187,8]
[399247228,1766202640931,-922.72,0.000188,3]
[399247230,1766202640940,-560.0,0.00018804,2]
[399247232,1766202640950,-302.63687509,0.000189,2]
[399247234,1766202640959,-250.0,0.00019,2]
[399247236,1766202640969,-160.0,0.00019013,9]
[399247238,1766202640978,-1152.0,0.00019039,2]
[399247240,1766202640988,-567.0,0.00019065,2]
[399247242,1766202640997,-302.63687509,0.00019089,2]
[399247244,1766202641006,-152.15453697,0.0001917,10]
[399247246,1766202641016,-484.3376064,0.00019174,10]
[399247247,1766202641024,-5182.07559048,0.0001919,120]
[399247248,1766202641034,-1681.34347988,0.00019213,2]
[399247249,1766202641043,-1000.0,0.00019265,5]
[399247250,1766202641052,-373.38188383,0.00019273,2]
[399247251,1766202641061,-302.63687509,0.00019278,2]
[399247252,1766202641071,-413.0,0.00019285,2]
[399247253,1766202641080,-160.0,0.00019325,10]
[399247254,1766202641090,-162.60442585,0.00019325,5]
[399247255,1766202641099,-270.3226501,0.00019352,2]
[399247256,1766202641108,-302.63687509,0.00019467,2]
[399247257,1766202641118,-302.63687509,0.00019656,2]
[399247258,1766202641127,-592.42,0.000197,2]
[399247259,1766202641137,-1000.0,0.000198,5]
[399247260,1766202641146,-346.04496405,0.00019845,4]
[399247261,1766202641155,-182.31,0.0001999,2]
[399247263,1766202641165,-502.11684333,0.0002,2]
[399247265,1766202641174,-219.71754501,0.0002,2]
[399247266,1766202641184,-59314.0,0.0002,7]
[399247269,1766202641194,-150.0,0.0002,2]
[399247270,1766202641203,-176.12903857,0.0002,2]
[399247272,1766202641213,-150.0,0.0002,10]
[399247273,1766202641222,-151.4030169,0.0002,2]
[399247275,1766202641231,-484.3376064,0.00020143,12]
[399247276,1766202641241,-2159.0,0.00020146,2]
[399247277,1766202641253,-1362.0,0.00020146,2]
[399247278,1766202641262,-632.0,0.00020146,2]
[399247279,1766202641272,-415.0,0.00020146,2]
[399247280,1766202641282,-415.0,0.00020146,2]
[399247281,1766202641291,-1219.394268,0.00020187,2]
[399247282,1766202641301,-1000.0,0.00020456,2]
[399247283,1766202641310,-244.0,0.00020456,2]
[399247284,1766202641319,-167.064439,0.00020548,2]
[399247285,1766202641328,-3140.88609444,0.00020572,2]
[399247286,1766202641338,-1613.0,0.00020875,2]
[399247287,1766202641347,-150.0,0.00021,2]
[399247288,1766202641356,-553.35161341,0.0002105,2]
[399247289,1766202641366,-152.15453697,0.00021106,14]
[399247290,1766202641375,-484.3376064,0.00021111,14]
[399247291,1766202641385,-417.0239222,0.00021273,2]
[399247292,1766202641395,-173.29147531,0.00021479,4]
[399247293,1766202641404,-567.0,0.00021804,2]
[399247294,1766202641413,-151.0,0.00021918,2]
[399247295,1766202641423,-151.0,0.00021918,2]
[399247296,1766202641432,-151.0,0.00021918,2]
[399247297,1766202641441,-151.0,0.00021918,2]
[399247298,1766202641450,-151.0,0.00021918,2]
[399247299,1766202641459,-151.0,0.00021918,2]
[399247300,1766202641468,-322.8917376,0.0002197,16]
[399247301,1766202641477,-1106.0,0.00022,2]
[399247302,1766202641487,-242.0,0.00022027,6]
[399247303,1766202641497,-206.48166356,0.00022054,16]
[399247304,1766202641507,-484.3376064,0.0002208,16]
[399247305,1766202641517,-131815.6,0.000224,2]
[399247306,1766202641526,-173.97,0.000224,7]
[399247307,1766202641536,-151.0,0.000224,2]
[399247308,1766202641546,-151.0,0.000224,2]
[399247309,1766202641557,-1000.0,0.00022501,10]
[399247310,1766202641566,-492.0,0.00022501,10]
[399247311,1766202641576,-678.7639322,0.000227,2]
[399247312,1766202641586,-3140.88609444,0.00022702,2]
[399247313,1766202641595,-592.42,0.000228,14]
[399247314,1766202641604,-2258.0,0.00022889,2]
[399247315,1766202641613,-1500.0,0.00023006,7]
[399247316,1766202641623,-152.15453697,0.00023041,18]
[399247317,1766202641633,-484.3376064,0.00023049,18]
[399247318,1766202641642,-244.0,0.00023123,9]
[399247319,1766202641712,-1362.0,0.00023146,2]
[399247320,1766202641721,-632.0,0.00023146,2]
[399247321,1766202641730,-415.0,0.00023146,2]
[399247322,1766202641740,-415.0,0.00023146,2]
[399247323,1766202641750,-460.66596057,0.00023273,2]
[399247324,1766202641759,-500.0,0.0002365,120]
[399247325,1766202641767,-500.0,0.0002365,120]
[399247326,1766202641776,-500.0,0.0002365,120]
[399247327,1766202641785,-500.0,0.0002365,120]
[399247328,1766202641794,-500.0,0.0002365,120]
[399247329,1766202641803,-500.0,0.0002365,120]
[399247330,1766202641813,-500.0,0.0002365,120]
[399247331,1766202641822,-500.0,0.0002365,120]
[399247332,1766202641831,-500.0,0.0002365,120]
[399247333,1766202641841,-500.0,0.0002365,120]
[399247334,1766202641852,-500.0,0.0002365,120]
[399247335,1766202641861,-500.0,0.0002365,120]
[399247336,1766202641871,-500.0,0.0002365,120]
[399247337,1766202641880,-500.0,0.0002365,120]
[399247338,1766202641890,-500.0,0.0002365,120]
[399247339,1766202641900,-500.0,0.0002365,120]
[399247340,1766202641909,-500.0,0.0002365,120]
[399247341,1766202641918,-500.0,0.0002365,120]
[399247342,1766202641928,-500.0,0.0002365,120]
[399247343,1766202641939,-500.0,0.0002365,120]
[399247344,1766202641949,-500.0,0.0002365,120]
[399247345,1766202641959,-500.0,0.0002365,120]
[399247346,1766202641968,-500.0,0.0002365,120]
[399247347,1766202641980,-500.0,0.0002365,120]
[399247348,1766202641990,-500.0,0.0002365,120]
[399247349,1766202642000,-500.0,0.0002365,120]
[399247350,1766202642010,-500.0,0.0002365,120]
[399247351,1766202642021,-500.0,0.0002365,120]
[399247352,1766202642030,-500.0,0.0002365,120]
[399247353,1766202642039,-500.0,0.0002365,120]
[399247354,1766202642048,-500.0,0.0002365,120]
[399247355,1766202642057,-500.0,0.0002365,120]
[399247356,1766202642067,-500.0,0.0002365,120]
[399247357,1766202642076,-500.0,0.0002365,120]
[399247358,1766202642088,-500.0,0.0002365,120]
[399247359,1766202642098,-500.0,0.0002365,120]
[399247360,1766202642111,-500.0,0.0002365,120]
[399247361,1766202642120,-500.0,0.0002365,120]
[399247362,1766202642130,-500.0,0.0002365,120]
[399247363,1766202642139,-500.0,0.0002365,120]
[399247364,1766202642148,-500.0,0.0002365,120]
[399247365,1766202642158,-500.0,0.0002365,120]
[399247366,1766202642167,-500.0,0.0002365,120]
[399247367,1766202642176,-500.0,0.0002365,120]
[399247368,1766202642185,-500.0,0.0002365,120]
[399247369,1766202642195,-500.0,0.0002365,120]
[399247370,1766202642204,-500.0,0.0002365,120]
[399247371,1766202642213,-500.0,0.0002365,120]
[399247372,1766202642222,-500.0,0.0002365,120]
[399247373,1766202642231,-517.94,0.0002365,120]
[399247374,1766202642240,-500.0,0.0002365,120]
[399247375,1766202642249,-500.0,0.0002365,120]
[399247376,1766202642258,-500.0,0.0002365,120]
[399247377,1766202642269,-500.0,0.0002365,120]
[399247378,1766202642279,-500.0,0.0002365,120]
[399247379,1766202642287,-500.0,0.0002365,120]
[399247380,1766202642296,-500.0,0.0002365,120]
[399247381,1766202642307,-500.0,0.0002365,120]
[399247382,1766202642316,-500.0,0.0002365,120]
[399247383,1766202642326,-500.0,0.0002365,120]
[399247384,1766202642335,-500.0,0.0002365,120]
[399247385,1766202642344,-500.0,0.0002365,120]
[399247386,1766202642353,-500.0,0.0002365,120]
[399247387,1766202642363,-500.0,0.0002365,120]
[399247388,1766202642372,-500.0,0.0002365,120]
[399247389,1766202642381,-500.0,0.0002365,120]
[399247390,1766202642390,-500.0,0.0002365,120]
[399247391,1766202642400,-500.0,0.0002365,120]
[399247392,1766202642410,-500.0,0.0002365,120]
[399247393,1766202642418,-500.0,0.0002365,120]
[399247394,1766202642427,-500.0,0.0002365,120]
[399247395,1766202642436,-500.0,0.0002365,120]
[399247396,1766202642444,-500.0,0.0002365,120]
[399247397,1766202642453,-500.0,0.0002365,120]
[399247398,1766202642463,-500.0,0.0002365,120]
[399247399,1766202642473,-500.0,0.0002365,120]
[399247400,1766202642483,-500.0,0.0002365,120]
[399247401,1766202642493,-500.0,0.0002365,120]
[399247402,1766202642502,-500.0,0.0002365,120]
[399247403,1766202642511,-500.0,0.0002365,120]
[399247404,1766202642521,-500.0,0.0002365,120]
[399247405,1766202642530,-500.0,0.0002365,120]
[399247406,1766202642539,-500.0,0.0002365,120]
[399247407,1766202642548,-500.0,0.0002365,120]
[399247408,1766202642557,-500.0,0.0002365,120]
[399247409,1766202642566,-500.0,0.0002365,120]
[399247410,1766202642576,-500.0,0.0002365,120]
[399247411,1766202642585,-500.0,0.0002365,120]
[399247412,1766202642594,-500.0,0.0002365,120]
[399247413,1766202642603,-500.0,0.0002365,120]
[399247414,1766202642612,-536.15,0.0002365,120]
[399247415,1766202642621,-500.0,0.0002365,120]
[399247416,1766202642631,-500.0,0.0002365,120]
[399247417,1766202642640,-151.0,0.0002365,2]
[399247418,1766202642650,-600.0,0.00023664,2]
[399247419,1766202642659,-600.0,0.0002391,2]
[399247420,1766202642668,-1452.33320108,0.00024,120]
[399247421,1766202642678,-151.0,0.00024,9]
[399247422,1766202642686,-484.3376064,0.00024017,20]
[399247423,1766202642696,-1355.824632,0.0002406,5]
[399247424,1766202642705,-1000.0,0.0002408,5]
[399247425,1766202642715,-1000.0,0.000241,5]
[399247426,1766202642725,-1500.0,0.00024102,7]
[399247427,1766202642735,-772.43231515,0.00024157,2]
[399247428,1766202642744,-246.0,0.00024219,12]
[399247429,1766202642753,-567.0,0.00024543,2]
[399247430,1766202642762,-7252.31505995,0.0002465,2]
[399247431,1766202642771,-32456.27754156,0.0002465,2]
[399247432,1766202642780,-513.15544965,0.0002465,2]
[399247433,1766202642789,-150.0,0.0002465,120]
[399247434,1766202642800,-150.0,0.00024658,2]
[399247435,1766202642810,-200.0,0.00024658,2]
[399247436,1766202642819,-380.0,0.00024658,2]
[399247437,1766202642828,-151.0,0.00024658,2]
[399247438,1766202642837,-154.604792,0.00024658,2]
[399247439,1766202642846,-500.0,0.00024658,2]
[399247440,1766202642855,-1000.0,0.00024752,10]
[399247441,1766202642864,-791.0,0.00024752,10]
[399247442,1766202642873,-16803.00056433,0.00024774,2]
[399247443,1766202642881,-500.0,0.00024795,2]
[399247444,1766202642890,-2828.34,0.000248,2]
[399247445,1766202642900,-164248.242674,0.000248,2]
[399247446,1766202642909,-1681.34347988,0.00024828,2]
[399247447,1766202642918,-3140.88609444,0.00024832,2]
[399247448,1766202642927,-590.97502124,0.00024883,2]
[399247449,1766202642936,-300.0,0.0002489,5]
[399247450,1766202642945,-300.0,0.0002489,2]
[399247451,1766202642954,-207330.62739624,0.000249,2]
[399247452,1766202643394,-3e-08,0.000249,2]
[399247462,1766202732314,-500.0,0.00013273,2]
[399247463,1766202732348,-500.0,0.00013273,2]
[399247464,1766202732380,-500.0,0.00013273,2]
[399247465,1766202732412,-500.0,0.00013273,2]
[399247466,1766202732443,-500.0,0.00013273,2]
[399247467,1766202732474,-500.0,0.00013273,2]
[399247468,1766202732506,-500.0,0.00013273,2]
[399247469,1766202732539,-500.0,0.00013273,2]
[399247470,1766202732571,-300.0,0.00013494,2]
[399247471,1766202733059,-5294.04249348,0.00013495,2]
[399247472,1766202733087,-10000.01,0.00013495,2]
[399247473,1766202739314,-10000.01,0.00013495,2]
[399247474,1766202739507,-10000.01,0.00013495,2]
[399247475,1766202739720,-3048.08855803,0.00013495,2]
[399247476,1766202739743,-3903.83288394,0.00013495,2]
[399247478,1766202785071,162.47,0.0001,2]
[399247479,1766202816307,1658.63113556,0.00013273,2]
[399247480,1766202840374,1284.87487273,0.00013273,2]
[399247481,1766202842280,300.0,0.00013272,2]
[399247482,1766202850181,208.1092,8e-05,2]
[399247483,1766202901267,300.0,0.00013272,2]
[399247484,1766202901997,300.0,0.00013272,2]
[399247485,1766202902197,300.0,0.00013272,2]
[399247486,1766202902741,1200.0,0.00013272,2]
[399247487,1766202902993,300.0,0.00013272,2]
[399247488,1766202917762,150.0,0.00011714,2]
[399247489,1766202918195,150.0,0.00012272,2]
[399247490,1766202918592,150.0,0.0001283,2]
[399247491,1766202962258,300.0,0.00013272,2]
[399247493,1766203022433,300.0,0.00013272,2]
[399247494,1766203068210,150.0,0.00011685,2]
[399247495,1766203068596,150.0,0.00012241,2]
[399247496,1766203068981,150.0,0.00012798,2]
[399247497,1766203082241,300.0,0.00013272,2]
[399247498,1766203142386,150.0,0.0001171,2]
[399247499,1766203142794,150.0,0.00012267,2]
[399247500,1766203143010,300.0,0.00013272,2]
[399247501,1766203143810,150.0,0.00012825,2]
[399247502,1766203201919,300.0,0.00013272,2]
[399247503,1766203202151,300.0,0.00013272,2]
[399247504,1766203202844,835.92479171,0.00013272,2]
[399247505,1766203202870,176.07520829,0.00013272,2]
[399247506,1766203214953,150.0,0.00011691,2]
[399247507,1766203215340,150.0,0.00012247,2]
[399247508,1766203215744,150.0,0.00012804,2]
[399247509,1766203263305,300.0,0.00013272,2]
[399247510,1766203286075,150.0,9.879e-05,2]
[399247511,1766203286488,150.0,0.0001035,2]
[399247512,1766203286899,150.0,0.0001082,2]
[399247513,1766203287334,150.0,0.00011291,2]
[399247514,1766203287756,150.0,0.00011761,2]
[399247515,1766203288161,150.0,0.00012232,2]
[399247516,1766203288549,150.0,0.00012702,2]
[399247517,1766203288966,165.64,0.00013173,2]
[399247518,1766203322224,300.0,0.00013272,2]
[399247519,1766203352238,-500.0,0.00013273,2]
[399247520,1766203352265,-500.0,0.00013273,2]
[399247521,1766203352291,-500.0,0.00013273,2]
[399247522,1766203352318,-500.0,0.00013273,2]
[399247523,1766203352346,-500.0,0.00013273,2]
[399247524,1766203352373,-448.48362501,0.00013273,2]
[399247525,1766203352401,-500.0,0.00013273,2]
[399247526,1766203352428,-500.0,0.00013273,2]
[399247527,1766203352475,-500.0,0.00013273,2]
[399247528,1766203352507,-500.0,0.00013273,2]
[399247529,1766203354914,150.0,9.887e-05,2]
[399247530,1766203355394,150.0,0.00010357,2]
[399247531,1766203366146,-200.0,0.0001303,2]
[399247532,1766203366173,-500.0,0.00013273,2]
[399247533,1766203366200,-500.0,0.00013273,2]
[399247534,1766203366325,-500.0,0.00013273,2]
[399247535,1766203366351,-500.0,0.00013273,2]
[399247536,1766203366377,-500.0,0.00013273,2]
[399247537,1766203366402,-500.0,0.00013273,2]
[399247538,1766203366428,-477.6371833,0.00013273,2]
[399247539,1766203366455,-500.0,0.00013273,2]
[399247540,1766203366481,-500.0,0.00013273,2]
[399247541,1766203366507,-231.99696408,0.00013273,2]
[399247542,1766203419671,150.0,9.925e-05,2]
[399247543,1766203442753,232.0,0.00013272,2]
[399247545,1766203502768,188.0,0.00013272,2]
[399247547,1766203727115,-494.75736797,0.00013273,2]
[399247548,1766203727142,-500.60980184,0.00013273,2]
[399247549,1766203727168,-500.0,0.00013273,2]
[399247550,1766203727195,-500.0,0.00013273,2]
[399247551,1766203727221,-503.41984527,0.00013273,2]
[399247552,1766203727249,-500.0,0.00013273,2]
[399247553,1766203727275,-167.98710716,0.00013273,2]
[399247554,1766203727307,-500.0,0.00013273,2]
[399247555,1766203727333,-500.0,0.00013273,2]
[399247556,1766203727359,-500.0,0.00013273,2]
[399247557,1766203727386,-165.68808767,0.00013273,2]
[399247558,1766203738889,150.0,9.907e-05,2]
[399247559,1766203739364,150.0,0.00010379,2]
[399247560,1766203739767,150.0,0.0001085,2]
[399247561,1766203740217,150.0,0.00011322,2]
[399247562,1766203740631,150.0,0.00011794,2]
[399247563,1766203744375,-4555.69377612,0.0001314,2]
[399247564,1766203751960,888.62244776,0.00013273,2]
[399247565,1766203751986,2306.21279511,0.00013273,2]
[399247566,1766203774125,-335.08558018,0.00013273,2]
[399247567,1766203774145,-500.0,0.00013273,2]
[399247568,1766203774163,-500.0,0.00013273,2]
[399247569,1766203774181,-185.11830192,0.00013273,2]
[399247570,1766203774297,-500.65649316,0.00013273,2]
[399247571,1766203774315,-325.86088413,0.00013273,2]
[399247572,1766203774333,-500.0,0.00013273,2]
[399247573,1766203774351,-500.811125,0.00013273,2]
[399247574,1766203774371,-500.58501017,0.00013273,2]
[399247575,1766203774390,-200.98709011,0.00013273,2]
[399247576,1766203774410,-500.0,0.00013273,2]
[399247577,1766203774430,-500.34427697,0.00013273,2]
[399247578,1766203774449,-159.04423072,0.00013273,2]
[399247579,1766203774469,-500.35694505,0.00013273,2]
[399247580,1766203774488,-482.41353391,0.00013273,2]
[399247581,1766203774507,-500.0,0.00013273,2]
[399247582,1766203774526,-500.0,0.00013273,2]
[399247583,1766203774545,-500.0,0.00013273,2]
[399247584,1766203774564,-217.91191805,0.00013273,2]
[399247585,1766203774583,-608.0,0.00013273,2]
[399247586,1766203780970,184.937733,0.00013856,120]
[399247587,1766203782020,-600.0,0.00013537,2]
[399247588,1766203805074,150.0,9.862e-05,2]
[399247589,1766203805481,170.68,0.00010332,2]
[399247590,1766203805866,256.02,0.00010801,2]
[399247591,1766203806285,341.35,0.00011271,2]
[399247592,1766203806748,426.69,0.0001174,2]
[399247593,1766203807144,512.03,0.0001221,2]
[399247594,1766203807593,597.37,0.0001268,2]
[399247595,1766203808008,682.71,0.00013149,2]
[399247596,1766203808543,768.05,0.00013619,2]
[399247597,1766203816317,500.0,0.00013273,2]
[399247598,1766203830273,500.65961246,0.00013273,2]
[399247606,1766203832262,527.62119474,0.00013273,2]
[399247624,1766203833108,500.0,0.00013273,2]
[399247625,1766203833987,500.0,0.00013273,2]
[399247626,1766203834606,500.0,0.00013273,2]
[399247656,1766203838578,-1184.988129,0.00013699,2]
[399247658,1766203838588,-500.0,0.00013699,2]
[399247660,1766203838598,-615.0,0.00013699,2]
[399247662,1766203838607,-300.0,0.0001382,2]
[399247664,1766203838617,-119.58042926,0.00013821,2]
[399247666,1766203838628,-382.0511666,0.00013821,2]
[399247668,1766203838638,-500.58110515,0.00013821,2]
[399247670,1766203838647,-1000.0,0.00013821,2]
[399247672,1766203838657,-1000.0,0.00013821,2]
[399247674,1766203838667,-1000.0,0.00013821,2]